[Event "22nd Ruzomberok Open 2019"]
[Site "Ruzomberok"]
[Date "2019.07.02"]
[Round "4.12"]
[White "Pasztor, Ladislav"]
[Black "Motycakova, Monika"]
[Result "0-1"]
[ECO "A22"]
[WhiteElo "1857"]
[BlackElo "2150"]
[Annotator "NA"]
[PlyCount "100"]
[EventDate "2019.06.29"]
[EventType "swiss"]
[EventCountry "SVK"]
[SourceTitle "playchess.com"]
[Source "ChessBase"]
[SourceQuality "1"]
[TimeControl "40/5400+30:1800+30"]

1. c4 {[%emt 0:00:00]} e5 {[%emt 0:00:00]} 2. Nc3 {[%emt 0:00:00]} Nf6 {[%emt 0:00:00]} 3. g3 {[%emt 0:01:07]} d5 {[%emt 0:00:00]} 4. cxd5 {[%emt 0:00:08]} Nxd5 {[%emt 0:00:03]} 5. Bg2 {[%emt 0:00:24]} Nb6 {[%emt 0:00:14]} 6. Nf3 {[%emt 0:00:23]} Nc6 {[%emt 0:00:09]} 7. O-O {[%emt 0:00:24]} Be7 {[%emt 0:00:10]} 8. d3 {[%emt 0:05:26]} O-O {[%emt 0:00:09]} 9. b3 {[%emt 0:00:41]} Re8 {[%emt 0:10:48]} 10. Bb2 {[%emt 0:00:40]} Bf8 {[%emt 0:01:22]} 11. Qd2 {[%emt 0:03:31]} Nd4 {[%emt 0:06:40]} 12. Rac1 {[%emt 0:04:36]} c6 {[%emt 0:09:48]} 13. Nh4 {[%emt 0:04:07]} Be7 {[%emt 0:14:49]} 14. Nf3 {[%emt 0:00:21]} Bb4 {[%emt 0:00:53]} 15. Rfd1 {[%emt 0:08:39]} Bg4 {[%emt 0:07:12]} 16. h3 {[%emt 0:01:41]} Bxf3 {[%emt 0:06:23]} 17. Bxf3 {[%emt 0:03:08]} Nxf3+ {[%emt 0:02:50]} 18. exf3 {[%emt 0:00:18]} Qd7 {[%emt 0:02:06]} 19. Kg2 {[%emt 0:00:17]} Rad8 {[%emt 0:00:14]} 20. Qe2 {[%emt 0:00:30]} Re6 {[%emt 0:04:37]} 21. a3 {[%emt 0:08:45]} Bxc3 {[%emt 0:07:51]} 22. Bxc3 {[%emt 0:02:58]} f6 {[%emt 0:07:51]} 23. Ba5 {[%emt 0:05:18]} Rd6 {[%emt 0:00:38]} 24. Bxb6 {[%emt 0:01:07]} axb6 {[%emt 0:00:06]} 25. Rc3 {[%emt 0:00:41]} Rd4 {[%emt 0:00:39]} 26. b4 {[%emt 0:06:37]} Qd5 {[%emt 0:00:30]} 27. Qe3 {[%emt 0:04:26]} Kf7 {[%emt 0:05:34]} 28. Kf1 {[%emt 0:03:15]} Qb5 {[%emt 0:03:46]} 29. Ke1 {[%emt 0:10:18]} c5 {[%emt 0:02:33]} 30. bxc5 {[%emt 0:03:05]} bxc5 {[%emt 0:00:07]} 31. Qc1 {[%emt 0:01:25]} Rxd3 {[%emt 0:03:11]} 32. Rdxd3 {[%emt 0:03:09]} Rxd3 {[%emt 0:00:06]} 33. Rxc5 {[%emt 0:01:02]} Qb3 {[%emt 0:00:49]} 34. Qc4+ {[%emt 0:03:25]} Qxc4 {[%emt 0:00:49]} 35. Rxc4 {[%emt 0:00:33]} b5 {[%emt 0:00:56]} 36. Rb4 {[%emt 0:01:12]} Rxf3 {[%emt 0:00:38]} 37. Rxb5 {[%emt 0:01:34]} Rxa3 {[%emt 0:00:04]} 38. Rb7+ {[%emt 0:01:04]} Kg6 {[%emt 0:00:05]} 39. Ke2 {[%emt 0:00:23]} h5 {[%emt 0:00:18]} 40. Rc7 {[%emt 0:00:24]} h4 {[%emt 0:02:32]} 41. Rc1 {[%emt 0:33:08]} hxg3 {[%emt 0:15:22]} 42. Rg1 {[%emt 0:00:00]} Kf5 {[%emt 0:00:18]} 43. Rxg3 {[%emt 0:00:00]} Rxg3 {[%emt 0:01:29]} 44. fxg3 {[%emt 0:00:00]} Ke4 {[%emt 0:00:04]} 45. h4 {[%emt 0:00:00]} g6 {[%emt 0:04:15]} 46. Kf2 {[%emt 0:00:00]} Kf5 {[%emt 0:00:10]} 47. Kf3 {[%emt 0:00:00]} e4+ {[%emt 0:00:05]} 48. Ke3 {[%emt 0:00:00]} Kg4 {[%emt 0:00:07]} 49. Kxe4 {[%emt 0:00:00]} Kxg3 {[%emt 0:00:13]} 50. h5 {[%emt 0:00:00]} gxh5 {[%emt 0:00:10]} 0-1

[Event "22nd Ruzomberok Open 2019"]
[Site "Ruzomberok"]
[Date "2019.07.02"]
[Round "4.13"]
[White "Hrnciar, Roman"]
[Black "Zahradnik, Vladimir"]
[Result "0-1"]
[ECO "A03"]
[WhiteElo "2096"]
[BlackElo "1862"]
[Annotator "NA"]
[PlyCount "118"]
[EventDate "2019.06.29"]
[EventType "swiss"]
[EventCountry "SVK"]
[SourceTitle "playchess.com"]
[Source "ChessBase"]
[SourceQuality "1"]
[TimeControl "40/5400+30:1800+30"]

1. f4 {[%emt 0:00:00]} d5 {[%emt 0:00:00]} 2. e3 {[%emt 0:00:00]} Nf6 {[%emt 0:00:19]} 3. Nf3 {[%emt 0:00:09]} e6 {[%emt 0:00:17]} 4. b3 {[%emt 0:00:12]} Be7 {[%emt 0:02:45]} 5. Bb2 {[%emt 0:00:58]} O-O {[%emt 0:00:35]} 6. Be2 {[%emt 0:00:20]} c5 {[%emt 0:00:16]} 7. O-O {[%emt 0:00:08]} Nc6 {[%emt 0:00:37]} 8. Bb5 {[%emt 0:00:51]} Bd7 {[%emt 0:01:06]} 9. Bxc6 {[%emt 0:01:10]} Bxc6 {[%emt 0:00:10]} 10. Ne5 {[%emt 0:00:13]} Bb5 {[%emt 0:04:43]} 11. d3 {[%emt 0:03:02]} Nd7 {[%emt 0:01:44]} 12. c4 {[%emt 0:02:51]} Ba6 {[%emt 0:00:48]} 13. Qg4 {[%emt 0:05:50]} f5 {[%emt 0:01:20]} 14. Qf3 {[%emt 0:01:51]} Nxe5 {[%emt 0:00:26]} 15. Bxe5 {[%emt 0:01:25]} b5 {[%emt 0:00:28]} 16. cxd5 {[%emt 0:02:42]} Qxd5 {[%emt 0:02:07]} 17. e4 {[%emt 0:01:27]} Qd7 {[%emt 0:00:40]} 18. Nc3 {[%emt 0:00:23]} b4 {[%emt 0:00:27]} 19. Na4 {[%emt 0:01:05]} Qxd3 {[%emt 0:01:17]} 20. exf5 {[%emt 0:04:12]} Qxf3 {[%emt 0:00:49]} 21. Rxf3 {[%emt 0:01:03]} exf5 {[%emt 0:00:12]} 22. Rc1 {[%emt 0:01:16]} Rac8 {[%emt 0:00:35]} 23. Rg3 {[%emt 0:03:29]} g6 {[%emt 0:00:23]} 24. Re3 {[%emt 0:01:36]} Kf7 {[%emt 0:00:14]} 25. h4 {[%emt 0:03:37]} c4 {[%emt 0:00:37]} 26. Bd4 {[%emt 0:00:31]} Rfd8 {[%emt 0:04:21]} 27. Bxa7 {[%emt 0:02:58]} c3 {[%emt 0:01:32]} 28. Kh2 {[%emt 0:10:53]} Rd2 {[%emt 0:01:05]} 29. a3 {[%emt 0:04:28]} c2 {[%emt 0:03:51]} 30. Re5 {[%emt 0:06:02]} Bd6 {[%emt 0:03:11]} 31. Be3 {[%emt 0:00:39]} Rd3 {[%emt 0:07:11]} 32. Nb6 {[%emt 0:00:44]} Rcc3 {[%emt 0:03:10]} 33. Rd5 {[%emt 0:06:05]} Rxd5 {[%emt 0:06:10]} 34. Nxd5 {[%emt 0:00:23]} Rd3 {[%emt 0:15:50]} 35. Nxb4 {[%emt 0:13:03]} Bxb4 {[%emt 0:00:18]} 36. axb4 {[%emt 0:00:43]} Rxe3 {[%emt 0:00:07]} 37. Rxc2 {[%emt 0:00:10]} Re7 {[%emt 0:00:16]} 38. Rc5 {[%emt 0:00:45]} Bb7 {[%emt 0:00:09]} 39. b5 {[%emt 0:00:39]} h5 {[%emt 0:02:05]} 40. Kg3 {[%emt 0:00:36]} Ke6 {[%emt 0:00:30]} 41. Kf2 {[%emt 0:33:29]} Kd6 {[%emt 0:30:12]} 42. Rc3 {[%emt 0:00:40]} Be4 {[%emt 0:01:17]} 43. b4 {[%emt 0:02:26]} Rc7 {[%emt 0:00:57]} 44. Rg3 {[%emt 0:00:49]} Rg7 {[%emt 0:01:41]} 45. Rc3 {[%emt 0:03:31]} Bd5 {[%emt 0:02:45]} 46. Ra3 {[%emt 0:02:35]} Bb7 {[%emt 0:01:24]} 47. Rc3 {[%emt 0:01:58]} Re7 {[%emt 0:00:36]} 48. b6 {[%emt 0:04:14]} Bc6 {[%emt 0:05:19]} 49. Rd3+ {[%emt 0:00:00]} Bd5 {[%emt 0:00:00]} 50. Rg3 {[%emt 0:00:00]} Bf7 {[%emt 0:00:00]} 51. Rc3 {[%emt 0:00:00]} Rb7 {[%emt 0:00:00]} 52. Rd3+ {[%emt 0:00:00]} Kc6 {[%emt 0:00:00]} 53. Rd4 {[%emt 0:00:00]} Kxb6 {[%emt 0:00:00]} 54. Ke3 {[%emt 0:00:00]} Kb5 {[%emt 0:00:00]} 55. Kd3 {[%emt 0:00:00]} Rc7 {[%emt 0:00:00]} 56. g3 {[%emt 0:00:00]} Be6 {[%emt 0:00:00]} 57. Ke3 {[%emt 0:00:00]} Rc3+ {[%emt 0:00:00]} 58. Kf2 {[%emt 0:00:00]} Rc4 {[%emt 0:00:00]} 59. Rd6 {[%emt 0:00:00]} Re4 {[%emt 0:00:00]} 0-1

[Event "22nd Ruzomberok Open 2019"]
[Site "Ruzomberok"]
[Date "2019.07.02"]
[Round "4.14"]
[White "Bednar, Jan"]
[Black "Marsina, Stefan"]
[Result "1-0"]
[ECO "D37"]
[WhiteElo "2084"]
[BlackElo "1857"]
[Annotator "NA"]
[PlyCount "143"]
[EventDate "2019.06.29"]
[EventType "swiss"]
[EventCountry "SVK"]
[SourceTitle "playchess.com"]
[Source "ChessBase"]
[SourceQuality "1"]
[TimeControl "40/5400+30:1800+30"]

1. Nf3 {[%emt 0:00:43]} Nf6 {[%emt 0:00:00]} 2. d4 {[%emt 0:00:19]} d5 {[%emt 0:00:21]} 3. c4 {[%emt 0:00:06]} e6 {[%emt 0:00:06]} 4. Nc3 {[%emt 0:00:04]} Nbd7 {[%emt 0:01:20]} 5. Bg5 {[%emt 0:00:52]} Be7 {[%emt 0:00:12]} 6. e3 {[%emt 0:00:11]} h6 {[%emt 0:01:52]} 7. Bh4 {[%emt 0:00:16]} O-O {[%emt 0:01:29]} 8. Rc1 {[%emt 0:00:06]} a6 {[%emt 0:00:19]} 9. cxd5 {[%emt 0:01:38]} exd5 {[%emt 0:03:01]} 10. Bd3 {[%emt 0:00:25]} c5 {[%emt 0:11:16]} 11. dxc5 {[%emt 0:02:47]} Nxc5 {[%emt 0:00:14]} 12. Be2 {[%emt 0:00:25]} Nce4 {[%emt 0:11:21]} 13. O-O {[%emt 0:11:58]} Nxc3 {[%emt 0:01:25]} 14. bxc3 {[%emt 0:02:36]} Qa5 {[%emt 0:11:04]} 15. Qb3 {[%emt 0:00:17]} g5 {[%emt 0:02:47]} 16. Bg3 {[%emt 0:05:58]} Ne4 {[%emt 0:00:18]} 17. Rfd1 {[%emt 0:02:17]} Nxg3 {[%emt 0:11:11]} 18. hxg3 {[%emt 0:00:37]} Rd8 {[%emt 0:05:12]} 19. Nd4 {[%emt 0:08:43]} Rd6 {[%emt 0:07:30]} 20. c4 {[%emt 0:03:14]} Rb6 {[%emt 0:02:10]} 21. Qc2 {[%emt 0:00:41]} dxc4 {[%emt 0:07:13]} 22. Bxc4 {[%emt 0:05:30]} Qe5 {[%emt 0:03:27]} 23. Bb3 {[%emt 0:03:54]} Ba3 {[%emt 0:02:06]} 24. Rb1 {[%emt 0:03:20]} Rf6 {[%emt 0:01:17]} 25. Qd3 {[%emt 0:11:36]} Bf5 {[%emt 0:05:33]} 26. Nxf5 {[%emt 0:00:54]} Qxf5 {[%emt 0:01:01]} 27. Qxf5 {[%emt 0:00:12]} Rxf5 {[%emt 0:00:01]} 28. Bd5 {[%emt 0:00:26]} Rb8 {[%emt 0:02:14]} 29. Rb3 {[%emt 0:06:13]} Be7 {[%emt 0:02:02]} 30. Bxb7 {[%emt 0:04:07]} a5 {[%emt 0:00:34]} 31. Bd5 {[%emt 0:01:33]} Rxb3 {[%emt 0:00:13]} 32. axb3 {[%emt 0:00:10]} Bb4 {[%emt 0:01:22]} 33. Kf1 {[%emt 0:00:46]} Rf6 {[%emt 0:00:52]} 34. Ke2 {[%emt 0:00:12]} Kg7 {[%emt 0:00:30]} 35. Rc1 {[%emt 0:00:43]} Rd6 {[%emt 0:01:32]} 36. e4 {[%emt 0:00:08]} Rd7 {[%emt 0:01:33]} 37. Rc2 {[%emt 0:01:25]} f5 {[%emt 0:00:26]} 38. Be6 {[%emt 0:00:22]} Ra7 {[%emt 0:01:37]} 39. exf5 {[%emt 0:00:48]} a4 {[%emt 0:00:39]} 40. bxa4 {[%emt 0:00:18]} Rxa4 {[%emt 0:00:26]} 41. Rc4 {[%emt 0:34:23]} Ra2+ {[%emt 0:31:17]} 42. Kf3 {[%emt 0:00:22]} Ra3+ {[%emt 0:00:00]} 43. Kg4 {[%emt 0:00:00]} Bd6 {[%emt 0:00:00]} 44. Rd4 {[%emt 0:00:00]} Ra6 {[%emt 0:00:00]} 45. Rc4 {[%emt 0:00:00]} Rb6 {[%emt 0:00:00]} 46. Rc2 {[%emt 0:00:00]} Rb4+ {[%emt 0:00:00]} 47. Kh5 {[%emt 0:00:00]} Rb8 {[%emt 0:00:00]} 48. Re2 {[%emt 0:00:00]} Re8 {[%emt 0:00:00]} 49. Rd2 {[%emt 0:00:00]} Rd8 {[%emt 0:00:00]} 50. Bb3 {[%emt 0:00:00]} Be7 {[%emt 0:00:00]} 51. Re2 {[%emt 0:00:00]} Bf6 {[%emt 0:00:00]} 52. Rc2 {[%emt 0:00:00]} Be5 {[%emt 0:00:00]} 53. Rc6 {[%emt 0:00:00]} Bd6 {[%emt 0:00:00]} 54. Ra6 {[%emt 0:00:00]} Kf6 {[%emt 0:00:00]} 55. Ra7 {[%emt 0:00:00]} Be7 {[%emt 0:00:00]} 56. Ra6+ {[%emt 0:00:00]} Bd6 {[%emt 0:00:00]} 57. Bc2 {[%emt 0:00:00]} Kg7 {[%emt 0:05:00]} 58. Ra7+ {[%emt 0:00:00]} Kf6 {[%emt 0:00:13]} 59. Rh7 {[%emt 0:00:00]} Bf8 {[%emt 0:00:13]} 60. Rh8 {[%emt 0:00:00]} Rc8 {[%emt 0:01:51]} 61. Be4 {[%emt 0:00:00]} Rd8 {[%emt 0:00:39]} 62. Rg8 {[%emt 0:00:00]} Kf7 {[%emt 0:00:43]} 63. Rg6 {[%emt 0:00:00]} Rd2 {[%emt 0:00:15]} 64. f4 {[%emt 0:04:39]} gxf4 {[%emt 0:00:40]} 65. gxf4 {[%emt 0:00:07]} Rd4 {[%emt 0:01:41]} 66. Re6 {[%emt 0:00:23]} Bg7 {[%emt 0:00:08]} 67. g4 {[%emt 0:00:49]} Rd1 {[%emt 0:01:01]} 68. g5 {[%emt 0:00:11]} hxg5 {[%emt 0:00:29]} 69. fxg5 {[%emt 0:00:06]} Rf1 {[%emt 0:00:22]} 70. Bd5 {[%emt 0:01:46]} Kf8 {[%emt 0:00:27]} 71. Kg6 {[%emt 0:00:25]} Bd4 {[%emt 0:00:41]} 72. Bc6 {[%emt 0:00:10]} 1-0

[Event "22nd Ruzomberok Open 2019"]
[Site "Ruzomberok"]
[Date "2019.07.02"]
[Round "4.15"]
[White "Bartek, Ladislav"]
[Black "Korenova, Simona"]
[Result "1-0"]
[ECO "B99"]
[WhiteElo "2042"]
[BlackElo "1764"]
[Annotator "NA"]
[PlyCount "47"]
[EventDate "2019.06.29"]
[EventType "swiss"]
[EventCountry "SVK"]
[SourceTitle "playchess.com"]
[Source "ChessBase"]
[SourceQuality "1"]
[TimeControl "40/5400+30:1800+30"]

1. e4 {[%emt 0:00:00]} c5 {[%emt 0:00:00]} 2. Nf3 {[%emt 0:00:00]} d6 {[%emt 0:00:11]} 3. d4 {[%emt 0:00:00]} cxd4 {[%emt 0:00:37]} 4. Nxd4 {[%emt 0:00:07]} Nf6 {[%emt 0:00:32]} 5. Nc3 {[%emt 0:00:08]} a6 {[%emt 0:00:32]} 6. Bg5 {[%emt 0:00:12]} e6 {[%emt 0:00:21]} 7. f4 {[%emt 0:00:10]} Be7 {[%emt 0:01:06]} 8. Qf3 {[%emt 0:00:16]} Qc7 {[%emt 0:01:31]} 9. O-O-O {[%emt 0:00:15]} Nbd7 {[%emt 0:01:44]} 10. Bd3 {[%emt 0:00:41]} b5 {[%emt 0:02:37]} 11. Rhe1 {[%emt 0:00:14]} Bb7 {[%emt 0:01:02]} 12. Nd5 {[%emt 0:00:13]} Nxd5 {[%emt 0:10:01]} 13. exd5 {[%emt 0:00:11]} Bxd5 {[%emt 0:02:42]} 14. Qxd5 {[%emt 0:00:08]} exd5 {[%emt 0:01:39]} 15. Rxe7+ {[%emt 0:00:10]} Kf8 {[%emt 0:00:19]} 16. Bf5 {[%emt 0:00:17]} Qa5 {[%emt 0:12:40]} 17. Rxd7 {[%emt 0:01:20]} Qxa2 {[%emt 0:00:54]} 18. Be6 {[%emt 0:03:02]} Qa1+ {[%emt 0:02:37]} 19. Kd2 {[%emt 0:00:28]} Qxb2 {[%emt 0:00:27]} 20. Rxf7+ {[%emt 0:00:35]} Ke8 {[%emt 0:00:17]} 21. Nf5 {[%emt 0:11:29]} Qb4+ {[%emt 0:03:02]} 22. c3 {[%emt 0:00:13]} Qb2+ {[%emt 0:06:07]} 23. Kd3 {[%emt 0:00:11]} Qa3 {[%emt 0:05:03]} 24. Nxg7# {[%emt 0:00:17]} 1-0

[Event "22nd Ruzomberok Open 2019"]
[Site "Ruzomberok"]
[Date "2019.07.02"]
[Round "4.16"]
[White "Salomons, Lorenzo"]
[Black "Balogh, Peter"]
[Result "1-0"]
[ECO "A67"]
[WhiteElo "1842"]
[BlackElo "2037"]
[Annotator "NA"]
[PlyCount "59"]
[EventDate "2019.06.29"]
[EventType "swiss"]
[EventCountry "SVK"]
[SourceTitle "playchess.com"]
[Source "ChessBase"]
[SourceQuality "1"]
[TimeControl "40/5400+30:1800+30"]

1. d4 {[%emt 0:00:00]} Nf6 {[%emt 0:00:35]} 2. c4 {[%emt 0:00:00]} c5 {[%emt 0:00:13]} 3. d5 {[%emt 0:00:23]} e6 {[%emt 0:00:12]} 4. Nc3 {[%emt 0:00:31]} exd5 {[%emt 0:00:18]} 5. cxd5 {[%emt 0:00:23]} d6 {[%emt 0:00:11]} 6. e4 {[%emt 0:00:55]} g6 {[%emt 0:00:10]} 7. f4 {[%emt 0:01:10]} Bg7 {[%emt 0:00:09]} 8. Bb5+ {[%emt 0:00:54]} Nfd7 {[%emt 0:00:20]} 9. a4 {[%emt 0:00:22]} O-O {[%emt 0:00:11]} 10. Nf3 {[%emt 0:00:27]} a6 {[%emt 0:00:18]} 11. Bd3 {[%emt 0:04:22]} Qc7 {[%emt 0:05:02]} 12. O-O {[%emt 0:06:41]} c4 {[%emt 0:03:03]} 13. Bc2 {[%emt 0:00:41]} Nf6 {[%emt 0:01:33]} 14. Be3 {[%emt 0:05:48]} Nbd7 {[%emt 0:05:25]} 15. Kh1 {[%emt 0:07:13]} Re8 {[%emt 0:01:56]} 16. Bd4 {[%emt 0:01:10]} Nh5 {[%emt 0:06:07]} 17. Bxg7 {[%emt 0:00:45]} Nxg7 {[%emt 0:01:16]} 18. f5 {[%emt 0:02:05]} Ne5 {[%emt 0:08:15]} 19. Nd4 {[%emt 0:08:10]} Qc5 {[%emt 0:02:11]} 20. Qd2 {[%emt 0:05:15]} Nd3 {[%emt 0:09:14]} 21. fxg6 {[%emt 0:03:08]} fxg6 {[%emt 0:01:56]} 22. Bxd3 {[%emt 0:01:37]} Qxd4 {[%emt 0:01:44]} 23. Qf4 {[%emt 0:00:16]} Bd7 {[%emt 0:14:10]} 24. Qf7+ {[%emt 0:06:33]} Kh8 {[%emt 0:00:25]} 25. Bxc4 {[%emt 0:06:24]} Qxc4 {[%emt 0:11:40]} 26. Qxd7 {[%emt 0:00:42]} Qb4 {[%emt 0:00:25]} 27. Rf2 {[%emt 0:03:51]} h5 {[%emt 0:05:24]} 28. Raf1 {[%emt 0:02:53]} Qd4 {[%emt 0:00:48]} 29. Qxd6 {[%emt 0:03:38]} Nf5 {[%emt 0:01:18]} 30. Qxg6 {[%emt 0:04:53]} 1-0

[Event "22nd Ruzomberok Open 2019"]
[Site "Ruzomberok"]
[Date "2019.07.02"]
[Round "4.17"]
[White "Palider, Pavol"]
[Black "Taragelova, Martina"]
[Result "1-0"]
[ECO "D01"]
[WhiteElo "2026"]
[BlackElo "1719"]
[Annotator "NA"]
[PlyCount "61"]
[EventDate "2019.06.29"]
[EventType "swiss"]
[EventCountry "SVK"]
[SourceTitle "playchess.com"]
[Source "ChessBase"]
[SourceQuality "1"]
[TimeControl "40/5400+30:1800+30"]

1. d4 {[%emt 0:00:00]} d5 {[%emt 0:00:00]} 2. Nc3 {[%emt 0:00:00]} Nf6 {[%emt 0:00:05]} 3. Bg5 {[%emt 0:00:00]} Nbd7 {[%emt 0:00:28]} 4. Nf3 {[%emt 0:00:15]} h6 {[%emt 0:00:28]} 5. Bf4 {[%emt 0:00:15]} c5 {[%emt 0:01:00]} 6. e3 {[%emt 0:00:19]} a6 {[%emt 0:00:25]} 7. a4 {[%emt 0:00:40]} e6 {[%emt 0:01:46]} 8. h3 {[%emt 0:00:15]} Qa5 {[%emt 0:11:25]} 9. Qd2 {[%emt 0:02:52]} c4 {[%emt 0:08:46]} 10. Nb1 {[%emt 0:00:19]} Bb4 {[%emt 0:00:32]} 11. c3 {[%emt 0:00:13]} Be7 {[%emt 0:00:09]} 12. Be2 {[%emt 0:01:28]} b5 {[%emt 0:02:27]} 13. O-O {[%emt 0:01:07]} b4 {[%emt 0:07:24]} 14. Qc1 {[%emt 0:02:50]} Ne4 {[%emt 0:06:07]} 15. Nfd2 {[%emt 0:00:14]} Nxd2 {[%emt 0:01:16]} 16. Nxd2 {[%emt 0:00:10]} O-O {[%emt 0:01:32]} 17. e4 {[%emt 0:00:38]} Re8 {[%emt 0:04:42]} 18. e5 {[%emt 0:00:30]} Nb6 {[%emt 0:05:56]} 19. Bd1 {[%emt 0:02:58]} Bd7 {[%emt 0:04:05]} 20. Bc2 {[%emt 0:01:09]} Reb8 {[%emt 0:06:43]} 21. Nf3 {[%emt 0:00:48]} Bf8 {[%emt 0:02:38]} 22. Bd2 {[%emt 0:01:17]} b3 {[%emt 0:01:12]} 23. Bb1 {[%emt 0:00:14]} Nxa4 {[%emt 0:01:09]} 24. g4 {[%emt 0:00:44]} Qd8 {[%emt 0:01:50]} 25. g5 {[%emt 0:00:21]} hxg5 {[%emt 0:02:18]} 26. Nxg5 {[%emt 0:01:10]} Be7 {[%emt 0:01:31]} 27. f4 {[%emt 0:01:46]} Nb6 {[%emt 0:06:15]} 28. Qd1 {[%emt 0:00:32]} f5 {[%emt 0:03:55]} 29. exf6 {[%emt 0:00:43]} Bxf6 {[%emt 0:00:47]} 30. Qh5 {[%emt 0:00:29]} Nc8 {[%emt 0:04:49]} 31. Bh7+ {[%emt 0:05:04]} 1-0

[Event "22nd Ruzomberok Open 2019"]
[Site "Ruzomberok"]
[Date "2019.07.02"]
[Round "4.18"]
[White "Mc Aleenan, Charles"]
[Black "Viczencz, Peter"]
[Result "0-1"]
[ECO "A43"]
[WhiteElo "1746"]
[BlackElo "2014"]
[Annotator "NA"]
[PlyCount "60"]
[EventDate "2019.06.29"]
[EventType "swiss"]
[EventCountry "SVK"]
[SourceTitle "playchess.com"]
[Source "ChessBase"]
[SourceQuality "1"]
[TimeControl "40/5400+30:1800+30"]

1. d4 {[%emt 0:00:00]} c5 {[%emt 0:00:00]} 2. c3 {[%emt 0:00:17]} e6 {[%emt 0:00:00]} 3. Nf3 {[%emt 0:00:00]} Nf6 {[%emt 0:00:06]} 4. g3 {[%emt 0:04:06]} Be7 {[%emt 0:01:08]} 5. Bg2 {[%emt 0:01:01]} O-O {[%emt 0:00:12]} 6. O-O {[%emt 0:00:13]} Nc6 {[%emt 0:00:13]} 7. a4 {[%emt 0:04:01]} h6 {[%emt 0:02:17]} 8. Na3 {[%emt 0:03:04]} a6 {[%emt 0:00:22]} 9. Nc2 {[%emt 0:00:18]} d5 {[%emt 0:02:20]} 10. h3 {[%emt 0:03:59]} c4 {[%emt 0:01:39]} 11. Bf4 {[%emt 0:03:10]} Na5 {[%emt 0:02:51]} 12. Nd2 {[%emt 0:03:33]} Nh5 {[%emt 0:05:52]} 13. e3 {[%emt 0:04:26]} Nxf4 {[%emt 0:01:39]} 14. exf4 {[%emt 0:00:10]} f5 {[%emt 0:06:16]} 15. Ne3 {[%emt 0:04:55]} Qc7 {[%emt 0:07:29]} 16. Qe2 {[%emt 0:06:28]} Bd6 {[%emt 0:04:15]} 17. Nf3 {[%emt 0:06:56]} Bd7 {[%emt 0:02:24]} 18. Ne5 {[%emt 0:04:23]} Bxe5 {[%emt 0:01:44]} 19. fxe5 {[%emt 0:00:12]} Nb3 {[%emt 0:00:24]} 20. Ra3 {[%emt 0:03:34]} Bc6 {[%emt 0:01:42]} 21. Rd1 {[%emt 0:09:34]} Qd7 {[%emt 0:01:49]} 22. a5 {[%emt 0:02:48]} Ba4 {[%emt 0:00:44]} 23. Nxd5 {[%emt 0:13:33]} exd5 {[%emt 0:03:09]} 24. Rxa4 {[%emt 0:01:34]} Qxa4 {[%emt 0:00:57]} 25. Bxd5+ {[%emt 0:00:13]} Kh8 {[%emt 0:00:13]} 26. e6 {[%emt 0:06:02]} Nxa5 {[%emt 0:00:42]} 27. e7 {[%emt 0:01:33]} Rfe8 {[%emt 0:00:11]} 28. Re1 {[%emt 0:00:38]} Qd7 {[%emt 0:00:39]} 29. Bf7 {[%emt 0:01:47]} Nc6 {[%emt 0:00:37]} 30. Qxc4 {[%emt 0:02:53]} Rxe7 {[%emt 0:00:41]} 0-1

[Event "22nd Ruzomberok Open 2019"]
[Site "Ruzomberok"]
[Date "2019.07.02"]
[Round "4.19"]
[White "Galbavy, Dusan"]
[Black "Bakalar, Jan"]
[Result "1/2-1/2"]
[ECO "B23"]
[WhiteElo "1678"]
[BlackElo "1969"]
[Annotator "NA"]
[PlyCount "40"]
[EventDate "2019.06.29"]
[EventType "swiss"]
[EventCountry "SVK"]
[SourceTitle "playchess.com"]
[Source "ChessBase"]
[SourceQuality "1"]
[TimeControl "40/5400+30:1800+30"]

1. e4 {[%emt 0:02:01]} c5 {[%emt 0:01:13]} 2. Nc3 {[%emt 0:01:28]} g6 {[%emt 0:01:12]} 3. f4 {[%emt 0:00:16]} Bg7 {[%emt 0:00:04]} 4. Nf3 {[%emt 0:00:13]} Nc6 {[%emt 0:00:27]} 5. Bc4 {[%emt 0:00:19]} e6 {[%emt 0:00:32]} 6. a3 {[%emt 0:00:33]} a6 {[%emt 0:01:25]} 7. d3 {[%emt 0:00:59]} Nge7 {[%emt 0:03:15]} 8. O-O {[%emt 0:02:41]} O-O {[%emt 0:00:50]} 9. Bd2 {[%emt 0:02:03]} b5 {[%emt 0:03:36]} 10. Ba2 {[%emt 0:07:59]} b4 {[%emt 0:06:15]} 11. axb4 {[%emt 0:03:05]} cxb4 {[%emt 0:01:15]} 12. Na4 {[%emt 0:00:40]} d5 {[%emt 0:03:04]} 13. e5 {[%emt 0:02:21]} a5 {[%emt 0:04:57]} 14. c3 {[%emt 0:02:15]} Ba6 {[%emt 0:04:06]} 15. Be3 {[%emt 0:03:29]} f6 {[%emt 0:07:20]} 16. exf6 {[%emt 0:03:44]} Bxf6 {[%emt 0:00:14]} 17. Re1 {[%emt 0:03:12]} Re8 {[%emt 0:08:17]} 18. d4 {[%emt 0:01:45]} Nf5 {[%emt 0:01:28]} 19. Bf2 {[%emt 0:00:46]} bxc3 {[%emt 0:01:55]} 20. bxc3 {[%emt 0:00:23]} Bc8 {[%emt 0:01:00]} 1/2-1/2

[Event "22nd Ruzomberok Open 2019"]
[Site "Ruzomberok"]
[Date "2019.07.02"]
[Round "4.20"]
[White "Baleja, Marian"]
[Black "Cabanova, Kristina"]
[Result "1-0"]
[ECO "C11"]
[WhiteElo "1951"]
[BlackElo "1728"]
[Annotator "NA"]
[PlyCount "71"]
[EventDate "2019.06.29"]
[EventType "swiss"]
[EventCountry "SVK"]
[SourceTitle "playchess.com"]
[Source "ChessBase"]
[SourceQuality "1"]
[TimeControl "40/5400+30:1800+30"]

1. e4 {[%emt 0:00:00]} e6 {[%emt 0:00:00]} 2. d4 {[%emt 0:00:10]} d5 {[%emt 0:00:00]} 3. Nc3 {[%emt 0:00:49]} Nf6 {[%emt 0:00:00]} 4. Bg5 {[%emt 0:02:18]} dxe4 {[%emt 0:00:14]} 5. Nxe4 {[%emt 0:02:09]} Be7 {[%emt 0:00:12]} 6. Bxf6 {[%emt 0:04:44]} Bxf6 {[%emt 0:00:09]} 7. Nf3 {[%emt 0:00:24]} O-O {[%emt 0:02:51]} 8. Qd2 {[%emt 0:01:18]} Nd7 {[%emt 0:03:02]} 9. Bd3 {[%emt 0:02:43]} b6 {[%emt 0:02:59]} 10. O-O-O {[%emt 0:04:30]} Bb7 {[%emt 0:01:46]} 11. Qf4 {[%emt 0:07:02]} Rc8 {[%emt 0:05:19]} 12. h4 {[%emt 0:02:49]} Be7 {[%emt 0:09:10]} 13. c3 {[%emt 0:17:38]} c6 {[%emt 0:12:36]} 14. g4 {[%emt 0:05:04]} Qc7 {[%emt 0:00:50]} 15. Qd2 {[%emt 0:02:52]} c5 {[%emt 0:02:22]} 16. Rh3 {[%emt 0:05:59]} cxd4 {[%emt 0:04:35]} 17. Nxd4 {[%emt 0:00:07]} Ne5 {[%emt 0:00:31]} 18. Bc2 {[%emt 0:03:56]} Rfd8 {[%emt 0:07:48]} 19. Qe2 {[%emt 0:04:18]} Bd5 {[%emt 0:05:49]} 20. b3 {[%emt 0:05:11]} Ng6 {[%emt 0:09:31]} 21. Qe3 {[%emt 0:04:56]} Qf4 {[%emt 0:05:43]} 22. c4 {[%emt 0:08:23]} Bxe4 {[%emt 0:09:20]} 23. Bxe4 {[%emt 0:00:26]} Qd6 {[%emt 0:05:02]} 24. Bxg6 {[%emt 0:01:40]} hxg6 {[%emt 0:00:27]} 25. Rd2 {[%emt 0:08:52]} Qa3+ 26. Kb1 Qb4 {[%emt 0:03:24]} 27. Qe2 {[%emt 0:04:22]} Bf6 {[%emt 0:01:30]} 28. Rhd3 {[%emt 0:00:31]} Qc5 {[%emt 0:05:16]} 29. Nf3 {[%emt 0:00:04]} b5 {[%emt 0:00:36]} 30. Rxd8+ {[%emt 0:00:33]} Bxd8 {[%emt 0:00:03]} 31. Qd3 {[%emt 0:00:23]} Qc7 {[%emt 0:02:19]} 32. c5 {[%emt 0:01:00]} Qxc5 {[%emt 0:00:55]} 33. Qxd8+ {[%emt 0:00:05]} Kh7 {[%emt 0:00:33]} 34. Ng5+ {[%emt 0:00:20]} Kh6 {[%emt 0:00:08]} 35. Nxf7+ {[%emt 0:00:09]} Kh7 {[%emt 0:00:05]} 36. Qxc8 {[%emt 0:01:24]} 1-0